[Event "17th Prague Open 2018"]
[Site "Prague"]
[Date "2018.01.13"]
[Round "2"]
[White "Moehn, Hans"]
[Black "Taranenko, Evgueniy"]
[Result "1-0"]
[ECO "A04"]
[WhiteElo "2378"]
[BlackElo "2154"]
[Annotator "NA"]
[PlyCount "97"]
[EventDate "2018.??.??"]
[EventType "swiss"]
[EventCountry "CZE"]
[SourceTitle "playchess.com"]
[Source "ChessBase"]
[SourceQuality "1"]
[TimeControl "40/5400+30:1800+30"]

1. Nf3 {[%emt 0:00:00]} Nc6 {[%emt 0:03:50]} 2. d4 {[%emt 0:00:00]} d6 {[%emt 0:00:06]} 3. g3 {[%emt 0:00:00]} e5 {[%emt 0:00:09]} 4. d5 {[%emt 0:00:37]} Nce7 {[%emt 0:01:15]} 5. c4 {[%emt 0:00:26]} Nf6 {[%emt 0:00:27]} 6. Bg2 {[%emt 0:00:20]} Ng6 {[%emt 0:00:37]} 7. Nc3 {[%emt 0:01:10]} Be7 {[%emt 0:00:07]} 8. O-O {[%emt 0:01:24]} O-O {[%emt 0:00:06]} 9. Ne1 {[%emt 0:10:55]} Ne8 {[%emt 0:03:00]} 10. e4 {[%emt 0:03:21]} f5 {[%emt 0:01:16]} 11. exf5 {[%emt 0:00:34]} Bxf5 {[%emt 0:00:11]} 12. Nd3 {[%emt 0:04:47]} Qd7 {[%emt 0:01:30]} 13. Be3 {[%emt 0:00:47]} Bh3 {[%emt 0:03:54]} 14. f3 {[%emt 0:05:55]} Bxg2 {[%emt 0:01:04]} 15. Kxg2 {[%emt 0:00:06]} c6 {[%emt 0:07:15]} 16. Nf2 {[%emt 0:11:11]} Bd8 {[%emt 0:09:27]} 17. c5 {[%emt 0:03:02]} Ne7 {[%emt 0:19:22]} 18. Nfe4 {[%emt 0:06:10]} Nf5 {[%emt 0:00:38]} 19. Bg1 {[%emt 0:00:55]} Kh8 {[%emt 0:09:08]} 20. Qa4 {[%emt 0:05:15]} Rf7 {[%emt 0:04:30]} 21. dxc6 {[%emt 0:03:14]} Qxc6 {[%emt 0:01:28]} 22. Qxc6 {[%emt 0:04:34]} bxc6 {[%emt 0:00:01]} 23. cxd6 {[%emt 0:00:30]} Nexd6 {[%emt 0:01:23]} 24. Nxd6 {[%emt 0:00:36]} Nxd6 {[%emt 0:00:01]} 25. Rfd1 {[%emt 0:00:50]} Nf5 {[%emt 0:03:05]} 26. Ne4 {[%emt 0:10:22]} Bb6 {[%emt 0:11:48]} 27. Nc5 {[%emt 0:01:20]} Re8 {[%emt 0:11:43]} 28. Rac1 {[%emt 0:01:53]} h6 {[%emt 0:00:28]} 29. Rc4 {[%emt 0:02:54]} Nd4 {[%emt 0:01:59]} 30. Bxd4 {[%emt 0:00:42]} exd4 {[%emt 0:00:00]} 31. Ne4 {[%emt 0:00:24]} Re6 {[%emt 0:01:56]} 32. b4 {[%emt 0:03:54]} g5 {[%emt 0:02:34]} 33. h3 {[%emt 0:00:31]} Rf5 {[%emt 0:01:10]} 34. Rdc1 {[%emt 0:02:18]} d3 {[%emt 0:00:19]} 35. Rd1 {[%emt 0:01:23]} Rd5 {[%emt 0:00:24]} 36. Rc3 {[%emt 0:00:36]} Rd4 {[%emt 0:00:52]} 37. a3 {[%emt 0:01:03]} d2 {[%emt 0:00:31]} 38. Kf1 {[%emt 0:03:23]} a5 {[%emt 0:00:00]} 39. Rb3 {[%emt 0:04:01]} Rc4 {[%emt 0:01:44]} 40. Rxd2 {[%emt 0:03:06]} Rc1+ {[%emt 0:30:29]} 41. Kg2 {[%emt 0:32:53]} h5 {[%emt 0:00:00]} 42. bxa5 {[%emt 0:00:00]} Bxa5 {[%emt 0:00:00]} 43. Rd7 {[%emt 0:00:00]} Rc2+ {[%emt 0:00:00]} 44. Kf1 {[%emt 0:00:00]} Re8 {[%emt 0:00:00]} 45. Rbb7 {[%emt 0:00:00]} Rc1+ {[%emt 0:00:00]} 46. Ke2 {[%emt 0:00:00]} c5 {[%emt 0:00:00]} 47. Rh7+ {[%emt 0:00:00]} Kg8 {[%emt 0:00:00]} 48. Rhg7+ {[%emt 0:00:00]} Kh8 {[%emt 0:00:00]} 49. Rxg5 {[%emt 0:00:00]} 1-0

[Event "17th Prague Open 2018"]
[Site "Prague"]
[Date "2018.01.13"]
[Round "2"]
[White "Mihajlov, Sebastian"]
[Black "Yakimenko, Alexander A"]
[Result "1-0"]
[ECO "A84"]
[WhiteElo "2371"]
[BlackElo "2146"]
[Annotator "NA"]
[PlyCount "69"]
[EventDate "2018.??.??"]
[EventType "swiss"]
[EventCountry "CZE"]
[SourceTitle "playchess.com"]
[Source "ChessBase"]
[SourceQuality "1"]
[TimeControl "40/5400+30:1800+30"]

1. d4 {[%emt 0:08:00]} e6 {[%emt 0:00:36]} 2. c4 {[%emt 0:00:52]} f5 {[%emt 0:01:10]} 3. Nc3 {[%emt 0:01:53]} Nf6 {[%emt 0:00:35]} 4. e3 {[%emt 0:00:45]} b6 {[%emt 0:03:05]} 5. Bd3 {[%emt 0:04:51]} Bb7 {[%emt 0:01:00]} 6. f3 {[%emt 0:00:08]} Bb4 {[%emt 0:03:45]} 7. Nge2 {[%emt 0:00:09]} O-O {[%emt 0:08:17]} 8. a3 {[%emt 0:04:10]} Bxc3+ {[%emt 0:04:34]} 9. Nxc3 {[%emt 0:00:06]} d6 {[%emt 0:00:58]} 10. O-O {[%emt 0:01:33]} Nbd7 {[%emt 0:02:06]} 11. b4 {[%emt 0:09:08]} a5 {[%emt 0:04:17]} 12. Rb1 {[%emt 0:12:13]} Nh5 {[%emt 0:11:14]} 13. Qc2 {[%emt 0:08:28]} Qe7 {[%emt 0:08:16]} 14. Bd2 {[%emt 0:05:11]} axb4 {[%emt 0:06:20]} 15. axb4 {[%emt 0:00:18]} g6 {[%emt 0:00:43]} 16. Na4 {[%emt 0:11:30]} Bc6 {[%emt 0:10:43]} 17. b5 {[%emt 0:01:21]} Bb7 {[%emt 0:00:07]} 18. Rbc1 {[%emt 0:02:16]} Rfd8 {[%emt 0:02:48]} 19. Bb4 {[%emt 0:01:55]} Qh4 {[%emt 0:05:29]} 20. Rb1 {[%emt 0:03:32]} e5 {[%emt 0:02:11]} 21. c5 {[%emt 0:00:56]} dxc5 {[%emt 0:02:20]} 22. dxc5 {[%emt 0:00:42]} Rxa4 {[%emt 0:05:25]} 23. Be1 {[%emt 0:00:09]} Qg5 {[%emt 0:05:06]} 24. Qxa4 {[%emt 0:02:34]} Nxc5 {[%emt 0:00:15]} 25. Bc4+ {[%emt 0:00:03]} Kg7 {[%emt 0:03:14]} 26. Qa3 {[%emt 0:01:38]} Nf6 {[%emt 0:04:09]} 27. Bb4 {[%emt 0:03:37]} Nd3 {[%emt 0:03:52]} 28. Bf8+ {[%emt 0:00:23]} Rxf8 {[%emt 0:01:07]} 29. Qe7+ {[%emt 0:00:06]} Kh6 {[%emt 0:00:06]} 30. Qxf8+ {[%emt 0:00:05]} Kh5 {[%emt 0:00:10]} 31. Bxd3 {[%emt 0:00:04]} Qxe3+ {[%emt 0:00:25]} 32. Kh1 {[%emt 0:00:08]} Nd5 {[%emt 0:01:03]} 33. Bxf5 {[%emt 0:01:20]} Nf4 {[%emt 0:00:32]} 34. g4+ {[%emt 0:00:26]} Kg5 {[%emt 0:00:16]} 35. h4+ {[%emt 0:00:06]} 1-0

[Event "17th Prague Open 2018"]
[Site "Prague"]
[Date "2018.01.13"]
[Round "2"]
[White "Kaasen, Tor Fredrik"]
[Black "Kapusta, Petr"]
[Result "1-0"]
[ECO "E98"]
[WhiteElo "2340"]
[BlackElo "2140"]
[Annotator "NA"]
[PlyCount "79"]
[EventDate "2018.??.??"]
[EventType "swiss"]
[EventCountry "CZE"]
[SourceTitle "playchess.com"]
[Source "ChessBase"]
[SourceQuality "1"]
[TimeControl "40/5400+30:1800+30"]

1. d4 {[%emt 0:03:45]} Nf6 {[%emt 0:00:06]} 2. c4 {[%emt 0:00:03]} g6 {[%emt 0:00:07]} 3. Nc3 {[%emt 0:00:04]} Bg7 {[%emt 0:00:08]} 4. e4 {[%emt 0:00:15]} d6 {[%emt 0:00:06]} 5. Nf3 {[%emt 0:01:02]} O-O {[%emt 0:00:11]} 6. Be2 {[%emt 0:00:16]} e5 {[%emt 0:00:14]} 7. O-O {[%emt 0:00:04]} Nc6 {[%emt 0:00:07]} 8. d5 {[%emt 0:00:23]} Ne7 {[%emt 0:00:07]} 9. Ne1 {[%emt 0:00:03]} Nd7 {[%emt 0:02:38]} 10. Be3 {[%emt 0:00:05]} f5 {[%emt 0:00:18]} 11. f3 {[%emt 0:00:03]} Nf6 {[%emt 0:02:16]} 12. c5 {[%emt 0:01:33]} f4 {[%emt 0:00:58]} 13. Bf2 {[%emt 0:00:04]} g5 {[%emt 0:00:09]} 14. Rc1 {[%emt 0:00:51]} Ng6 {[%emt 0:01:33]} 15. cxd6 {[%emt 0:03:18]} cxd6 {[%emt 0:00:11]} 16. Nb5 {[%emt 0:00:03]} Rf7 {[%emt 0:00:59]} 17. Qc2 {[%emt 0:01:32]} g4 {[%emt 0:06:29]} 18. Nc7 {[%emt 0:02:24]} g3 {[%emt 0:05:06]} 19. Nxa8 {[%emt 0:01:41]} gxf2+ {[%emt 0:06:30]} 20. Rxf2 {[%emt 0:00:18]} Bd7 {[%emt 0:00:35]} 21. Nc7 {[%emt 0:00:44]} Nh5 {[%emt 0:00:33]} 22. Bb5 {[%emt 0:02:03]} Bxb5 {[%emt 0:03:38]} 23. Nxb5 {[%emt 0:00:04]} Qb6 {[%emt 0:00:32]} 24. Nc7 {[%emt 0:03:27]} Bf6 {[%emt 0:01:36]} 25. Qb3 {[%emt 0:05:27]} Qa5 {[%emt 0:20:35]} 26. Qb5 {[%emt 0:08:02]} Qxa2 {[%emt 0:03:49]} 27. Ne6 {[%emt 0:06:00]} Nf8 {[%emt 0:03:04]} 28. Nxf8 {[%emt 0:02:17]} Rxf8 {[%emt 0:00:25]} 29. Rfc2 {[%emt 0:00:04]} Bd8 {[%emt 0:03:01]} 30. Qxb7 {[%emt 0:03:04]} Qa4 {[%emt 0:03:40]} 31. Rc4 {[%emt 0:04:10]} Qa5 {[%emt 0:03:57]} 32. Qd7 {[%emt 0:04:35]} Qb6+ {[%emt 0:08:35]} 33. Kf1 {[%emt 0:02:41]} Nf6 {[%emt 0:01:48]} 34. Qc6 {[%emt 0:01:25]} Qxb2 {[%emt 0:00:42]} 35. Qxd6 {[%emt 0:01:13]} Bb6 {[%emt 0:00:52]} 36. R1c2 {[%emt 0:02:16]} Qa1 {[%emt 0:03:07]} 37. Qe6+ {[%emt 0:03:22]} Kg7 {[%emt 0:01:16]} 38. Rc7+ {[%emt 0:06:24]} Kg6 {[%emt 0:03:59]} 39. Qf5+ {[%emt 0:01:00]} Kh6 {[%emt 0:00:07]} 40. h4 {[%emt 0:00:53]} 1-0

[Event "17th Prague Open 2018"]
[Site "Prague"]
[Date "2018.01.13"]
[Round "2"]
[White "Liu, Yi"]
[Black "Rosenbaum, Vit"]
[Result "1-0"]
[ECO "C06"]
[WhiteElo "2337"]
[BlackElo "2123"]
[Annotator "NA"]
[PlyCount "101"]
[EventDate "2018.??.??"]
[EventType "swiss"]
[EventCountry "CZE"]
[SourceTitle "playchess.com"]
[Source "ChessBase"]
[SourceQuality "1"]
[TimeControl "40/5400+30:1800+30"]

1. e4 {[%emt 0:04:34]} e6 {[%emt 0:00:15]} 2. d4 {[%emt 0:01:13]} d5 {[%emt 0:00:04]} 3. Nd2 {[%emt 0:00:13]} Nf6 {[%emt 0:00:05]} 4. e5 {[%emt 0:00:05]} Nfd7 {[%emt 0:00:03]} 5. Bd3 {[%emt 0:01:47]} c5 {[%emt 0:00:05]} 6. c3 {[%emt 0:00:04]} Nc6 {[%emt 0:00:04]} 7. Ne2 {[%emt 0:00:04]} cxd4 {[%emt 0:00:16]} 8. cxd4 {[%emt 0:00:03]} f6 {[%emt 0:00:17]} 9. exf6 {[%emt 0:00:25]} Nxf6 {[%emt 0:00:06]} 10. Nf3 {[%emt 0:00:04]} Bd6 {[%emt 0:00:10]} 11. O-O {[%emt 0:00:25]} Qc7 {[%emt 0:00:09]} 12. g3 {[%emt 0:02:12]} O-O {[%emt 0:04:50]} 13. Bf4 {[%emt 0:00:21]} e5 {[%emt 0:06:17]} 14. dxe5 {[%emt 0:01:12]} Nxe5 {[%emt 0:00:07]} 15. Nxe5 {[%emt 0:00:59]} Bxe5 {[%emt 0:00:05]} 16. Rc1 {[%emt 0:01:39]} Qd6 {[%emt 0:00:50]} 17. Re1 {[%emt 0:17:34]} Bg4 {[%emt 0:07:13]} 18. Qb3 {[%emt 0:06:01]} Rfe8 {[%emt 0:18:27]} 19. Qxb7 {[%emt 0:15:48]} Rab8 {[%emt 0:04:21]} 20. Qxa7 {[%emt 0:00:56]} Rxb2 {[%emt 0:03:15]} 21. Be3 {[%emt 0:07:29]} Bxe2 {[%emt 0:14:06]} 22. Rxe2 {[%emt 0:00:43]} Rxe2 {[%emt 0:05:24]} 23. Bxe2 {[%emt 0:01:05]} d4 {[%emt 0:01:18]} 24. Rd1 {[%emt 0:04:16]} Qc6 {[%emt 0:04:56]} 25. Bd2 {[%emt 0:07:41]} Qc2 {[%emt 0:17:13]} 26. Qa6 {[%emt 0:04:12]} Ne4 {[%emt 0:05:15]} 27. Qc4+ {[%emt 0:09:02]} Qxc4 {[%emt 0:00:06]} 28. Bxc4+ {[%emt 0:00:01]} Kh8 {[%emt 0:00:08]} 29. Bb4 {[%emt 0:00:58]} Rc8 {[%emt 0:02:38]} 30. Ba6 {[%emt 0:02:57]} Rb8 {[%emt 0:03:27]} 31. a3 {[%emt 0:00:30]} Bf6 {[%emt 0:01:03]} 32. Re1 {[%emt 0:06:34]} Nc3 {[%emt 0:00:08]} 33. Re6 {[%emt 0:00:47]} h6 {[%emt 0:01:50]} 34. Bd3 {[%emt 0:01:02]} Kg8 {[%emt 0:01:00]} 35. Bc4 {[%emt 0:02:08]} Kh8 {[%emt 0:00:15]} 36. h4 {[%emt 0:01:32]} Na4 {[%emt 0:00:56]} 37. Rd6 {[%emt 0:01:03]} Nb2 {[%emt 0:00:59]} 38. Bf1 {[%emt 0:00:27]} Na4 {[%emt 0:00:34]} 39. Rd7 {[%emt 0:00:39]} Nb6 {[%emt 0:00:29]} 40. Rd6 {[%emt 0:00:27]} Na4 {[%emt 0:30:31]} 41. h5 {[%emt 0:04:16]} Nc3 {[%emt 0:00:00]} 42. Rd7 {[%emt 0:02:15]} Na4 {[%emt 0:00:00]} 43. f4 {[%emt 0:02:26]} Kg8 {[%emt 0:00:00]} 44. Bc4+ {[%emt 0:00:48]} Kh8 {[%emt 0:00:00]} 45. Bd3 {[%emt 0:01:23]} Rc8 {[%emt 0:00:00]} 46. Bf5 {[%emt 0:01:46]} Re8 {[%emt 0:00:00]} 47. Bg6 {[%emt 0:00:54]} Rc8 {[%emt 0:00:00]} 48. Kf2 {[%emt 0:04:08]} Nb6 {[%emt 0:00:00]} 49. Rd6 {[%emt 0:02:15]} Nc4 {[%emt 0:00:00]} 50. Re6 {[%emt 0:00:52]} Nb2 {[%emt 0:00:00]} 51. Ke2 {[%emt 0:00:54]} 1-0

[Event "17th Prague Open 2018"]
[Site "Prague"]
[Date "2018.01.13"]
[Round "2"]
[White "Hrdina, Robin"]
[Black "Akshat, Khamparia"]
[Result "1/2-1/2"]
[ECO "B12"]
[WhiteElo "2156"]
[BlackElo "2381"]
[Annotator "NA"]
[PlyCount "109"]
[EventDate "2018.??.??"]
[EventType "swiss"]
[EventCountry "CZE"]
[SourceTitle "playchess.com"]
[Source "ChessBase"]
[SourceQuality "1"]
[TimeControl "40/5400+30:1800+30"]

1. e4 {[%emt 0:05:58]} c6 {[%emt 0:04:17]} 2. d4 {[%emt 0:02:25]} Na6 {[%emt 0:00:06]} 3. Nc3 {[%emt 0:02:57]} Nc7 {[%emt 0:00:06]} 4. Bd3 {[%emt 0:00:48]} g6 {[%emt 0:00:28]} 5. Be3 {[%emt 0:01:05]} Bg7 {[%emt 0:00:08]} 6. Qd2 {[%emt 0:00:47]} d5 {[%emt 0:00:37]} 7. Nge2 {[%emt 0:04:12]} dxe4 {[%emt 0:03:24]} 8. Bxe4 {[%emt 0:01:48]} h5 {[%emt 0:04:42]} 9. O-O-O {[%emt 0:04:28]} Nf6 {[%emt 0:01:09]} 10. Bf3 {[%emt 0:01:48]} Bg4 {[%emt 0:04:06]} 11. Nf4 {[%emt 0:05:56]} Bxf3 {[%emt 0:06:57]} 12. gxf3 {[%emt 0:00:12]} Nfd5 {[%emt 0:02:16]} 13. Ncxd5 {[%emt 0:00:58]} Nxd5 {[%emt 0:00:21]} 14. Kb1 {[%emt 0:01:20]} Nxf4 {[%emt 0:42:42]} 15. Bxf4 {[%emt 0:00:21]} Qd7 {[%emt 0:00:09]} 16. Rhe1 {[%emt 0:05:34]} Bf6 {[%emt 0:01:18]} 17. Be5 {[%emt 0:09:18]} Bxe5 {[%emt 0:01:21]} 18. Rxe5 {[%emt 0:05:17]} O-O-O {[%emt 0:01:40]} 19. Qa5 {[%emt 0:07:30]} Kb8 {[%emt 0:02:20]} 20. d5 {[%emt 0:06:44]} Qd6 {[%emt 0:03:56]} 21. Rde1 {[%emt 0:01:40]} Rd7 {[%emt 0:09:01]} 22. c4 {[%emt 0:04:42]} cxd5 {[%emt 0:01:31]} 23. Rxd5 {[%emt 0:00:17]} Qc7 {[%emt 0:00:18]} 24. Qxc7+ {[%emt 0:04:16]} Kxc7 {[%emt 0:00:26]} 25. Rxd7+ {[%emt 0:01:06]} Kxd7 {[%emt 0:00:01]} 26. Kc2 {[%emt 0:00:08]} h4 {[%emt 0:05:16]} 27. Kd3 {[%emt 0:01:08]} Rh5 {[%emt 0:01:36]} 28. Re4 {[%emt 0:02:40]} f5 {[%emt 0:02:10]} 29. Rd4+ {[%emt 0:00:22]} Kc7 {[%emt 0:00:04]} 30. f4 {[%emt 0:02:46]} h3 {[%emt 0:00:17]} 31. Ke3 {[%emt 0:03:36]} Rh4 {[%emt 0:00:22]} 32. f3 {[%emt 0:00:05]} Rh8 {[%emt 0:01:55]} 33. Rd3 {[%emt 0:05:30]} Rg8 {[%emt 0:00:38]} 34. Kd4 {[%emt 0:04:53]} Rd8+ {[%emt 0:00:16]} 35. Kc3 {[%emt 0:00:07]} Rg8 {[%emt 0:00:10]} 36. a3 {[%emt 0:00:57]} e6 {[%emt 0:00:45]} 37. b4 {[%emt 0:00:52]} g5 {[%emt 0:00:38]} 38. fxg5 {[%emt 0:00:22]} f4 {[%emt 0:00:15]} 39. Kd4 {[%emt 0:01:30]} Rxg5 {[%emt 0:00:13]} 40. Ke4 {[%emt 0:00:11]} Rg2 {[%emt 0:30:52]} 41. Kxf4 {[%emt 0:31:26]} Rxh2 {[%emt 0:00:06]} 42. Kg3 {[%emt 0:00:54]} Rc2 {[%emt 0:00:22]} 43. Kxh3 {[%emt 0:00:18]} Rxc4 {[%emt 0:00:03]} 44. Kg3 {[%emt 0:00:07]} e5 {[%emt 0:01:41]} 45. Rd5 {[%emt 0:02:31]} e4 {[%emt 0:00:00]} 46. fxe4 {[%emt 0:00:00]} Rxe4 {[%emt 0:00:00]} 47. Kf3 {[%emt 0:00:00]} Re1 {[%emt 0:00:00]} 48. Kf2 {[%emt 0:00:00]} Re7 {[%emt 0:00:00]} 49. Kf3 {[%emt 0:00:00]} Kc6 {[%emt 0:00:00]} 50. Rc5+ {[%emt 0:00:00]} Kd6 {[%emt 0:00:00]} 51. Rh5 {[%emt 0:00:00]} b6 {[%emt 0:00:00]} 52. a4 {[%emt 0:00:00]} Rc7 {[%emt 0:00:00]} 53. Ke3 {[%emt 0:00:00]} Rc4 {[%emt 0:00:00]} 54. Rh6+ {[%emt 0:00:00]} Kd5 {[%emt 0:00:00]} 55. Rh5+ {[%emt 0:00:00] Ke5 Ke4+} 1/2-1/2

[Event "17th Prague Open 2018"]
[Site "Prague"]
[Date "2018.01.13"]
[Round "2"]
[White "Nie, Xin"]
[Black "Szpar, Milosz"]
[Result "1/2-1/2"]
[ECO "D85"]
[WhiteElo "2154"]
[BlackElo "2367"]
[Annotator "NA"]
[PlyCount "111"]
[EventDate "2018.??.??"]
[EventType "swiss"]
[EventCountry "CZE"]
[SourceTitle "playchess.com"]
[Source "ChessBase"]
[SourceQuality "1"]
[TimeControl "40/5400+30:1800+30"]

1. d4 {[%emt 0:00:00]} Nf6 {[%emt 0:00:27]} 2. c4 {[%emt 0:00:00]} g6 {[%emt 0:00:29]} 3. Nc3 {[%emt 0:00:06]} d5 {[%emt 0:00:33]} 4. cxd5 {[%emt 0:00:31]} Nxd5 {[%emt 0:00:24]} 5. Bd2 {[%emt 0:00:19]} Nb6 {[%emt 0:01:34]} 6. e3 {[%emt 0:00:10]} Bg7 {[%emt 0:00:21]} 7. f4 {[%emt 0:00:11]} O-O {[%emt 0:01:47]} 8. Nf3 {[%emt 0:00:49]} N8d7 {[%emt 0:04:05]} 9. Ne4 {[%emt 0:06:36]} Nd5 {[%emt 0:03:52]} 10. Bc4 {[%emt 0:08:20]} e6 {[%emt 0:01:02]} 11. O-O {[%emt 0:03:42]} b6 {[%emt 0:01:42]} 12. Qb3 {[%emt 0:06:55]} Bb7 {[%emt 0:01:03]} 13. Nc3 {[%emt 0:14:41]} N5f6 {[%emt 0:10:06]} 14. Rad1 {[%emt 0:03:21]} c5 {[%emt 0:03:04]} 15. dxc5 {[%emt 0:02:26]} Nxc5 {[%emt 0:00:13]} 16. Qa3 {[%emt 0:01:41]} Rc8 {[%emt 0:05:10]} 17. Be1 {[%emt 0:04:57]} Nd5 {[%emt 0:16:52]} 18. Bxd5 {[%emt 0:06:07]} exd5 {[%emt 0:01:04]} 19. b4 {[%emt 0:00:52]} Ne6 {[%emt 0:03:07]} 20. Qxa7 {[%emt 0:04:22]} Qc7 {[%emt 0:03:04]} 21. Nb5 {[%emt 0:08:12]} Qc6 {[%emt 0:00:53]} 22. Nd6 {[%emt 0:00:28]} Qxd6 {[%emt 0:00:56]} 23. Qxb7 {[%emt 0:00:05]} Rfd8 {[%emt 0:06:09]} 24. Qa6 {[%emt 0:02:28]} Qc6 {[%emt 0:04:12]} 25. Bh4 {[%emt 0:03:23]} Rd7 {[%emt 0:04:17]} 26. Qd3 {[%emt 0:01:42]} Qa4 {[%emt 0:00:56]} 27. f5 {[%emt 0:04:01]} gxf5 {[%emt 0:05:56]} 28. Qxf5 {[%emt 0:00:06]} Qc2 {[%emt 0:10:10]} 29. e4 {[%emt 0:02:33]} Ra7 {[%emt 0:05:04]} 30. Rxd5 {[%emt 0:00:59]} Rxa2 {[%emt 0:01:40]} 31. Rd2 {[%emt 0:02:01]} Qc4 {[%emt 0:02:43]} 32. Rxa2 {[%emt 0:00:54]} Qxa2 {[%emt 0:00:16]} 33. Ng5 {[%emt 0:00:19]} Rc7 {[%emt 0:01:34]} 34. Qxh7+ {[%emt 0:01:19]} Kf8 {[%emt 0:00:04]} 35. Qf5 {[%emt 0:01:25]} Nd4 {[%emt 0:01:34]} 36. Qd5 {[%emt 0:01:15]} Qxd5 {[%emt 0:01:00]} 37. exd5 {[%emt 0:00:02]} Kg8 {[%emt 0:00:38]} 38. d6 {[%emt 0:05:10]} Rd7 {[%emt 0:00:27]} 39. Nxf7 {[%emt 0:00:31]} Nc6 {[%emt 0:00:50]} 40. b5 {[%emt 0:01:47]} Nd4 {[%emt 0:30:09]} 41. Be7 {[%emt 0:33:18]} Nxb5 {[%emt 0:00:33]} 42. h4 {[%emt 0:02:11]} Nxd6 {[%emt 0:00:00]} 43. Bxd6 {[%emt 0:00:00]} Rxf7 {[%emt 0:00:00]} 44. Rxf7 {[%emt 0:00:00]} Kxf7 {[%emt 0:00:00]} 45. Kf2 {[%emt 0:00:00]} b5 {[%emt 0:00:00]} 46. Ke3 {[%emt 0:00:00]} Ke6 {[%emt 0:00:00]} 47. Bb4 {[%emt 0:00:00]} Kf5 {[%emt 0:00:00]} 48. Kf3 {[%emt 0:00:00]} Be5 {[%emt 0:00:00]} 49. g4+ {[%emt 0:00:00]} Kf6 {[%emt 0:00:00]} 50. Ke4 {[%emt 0:00:00]} Bg3 {[%emt 0:00:00]} 51. h5 {[%emt 0:00:00]} Bc7 {[%emt 0:00:00]} 52. Kd5 {[%emt 0:00:00]} Kg5 {[%emt 0:00:00]} 53. Bc3 {[%emt 0:00:00]} Bf4 {[%emt 0:00:00]} 54. Bg7 {[%emt 0:00:00]} Kxg4 {[%emt 0:00:00]} 55. h6 {[%emt 0:00:00]} Bxh6 {[%emt 0:00:00]} 56. Bxh6 {[%emt 0:00:00]} 1/2-1/2

[Event "17th Prague Open 2018"]
[Site "Prague"]
[Date "2018.01.13"]
[Round "2"]
[White "Lindbol, Aleksander"]
[Black "Melamed, Tatjana"]
[Result "1/2-1/2"]
[ECO "E91"]
[WhiteElo "2146"]
[BlackElo "2347"]
[Annotator "NA"]
[PlyCount "133"]
[EventDate "2018.??.??"]
[EventType "swiss"]
[EventCountry "CZE"]
[SourceTitle "playchess.com"]
[Source "ChessBase"]
[SourceQuality "1"]
[TimeControl "40/5400+30:1800+30"]

1. c4 {[%emt 0:00:00]} Nf6 {[%emt 0:00:31]} 2. Nc3 {[%emt 0:00:00]} g6 {[%emt 0:00:25]} 3. d4 {[%emt 0:00:56]} Bg7 {[%emt 0:00:57]} 4. e4 {[%emt 0:01:18]} d6 {[%emt 0:00:30]} 5. Nf3 {[%emt 0:00:09]} O-O {[%emt 0:00:32]} 6. Be2 {[%emt 0:00:32]} Na6 {[%emt 0:00:49]} 7. O-O {[%emt 0:02:47]} e5 {[%emt 0:02:02]} 8. dxe5 {[%emt 0:04:20]} dxe5 {[%emt 0:00:18]} 9. Be3 {[%emt 0:00:08]} Ng4 {[%emt 0:10:02]} 10. Bg5 {[%emt 0:02:28]} Qe8 {[%emt 0:19:09]} 11. h3 h6 12. hxg4 {[%emt 0:34:56]} hxg5 {[%emt 0:02:22]} 13. Nxg5 {[%emt 0:00:20]} Qe7 {[%emt 0:05:53]} 14. Nf3 {[%emt 0:06:44]} Bxg4 {[%emt 0:03:34]} 15. Nd5 {[%emt 0:01:19]} Qd8 {[%emt 0:04:31]} 16. Qc2 {[%emt 0:01:31]} c6 {[%emt 0:03:24]} 17. Ne3 {[%emt 0:01:12]} Bxf3 {[%emt 0:05:59]} 18. Bxf3 {[%emt 0:00:16]} Nc5 {[%emt 0:00:35]} 19. Bg4 {[%emt 0:08:15]} a5 {[%emt 0:01:15]} 20. Rad1 {[%emt 0:01:11]} Qg5 {[%emt 0:04:18]} 21. g3 {[%emt 0:02:31]} Rfd8 {[%emt 0:05:14]} 22. Kg2 {[%emt 0:01:16]} Rd4 {[%emt 0:01:29]} 23. Bf3 {[%emt 0:05:37]} Ne6 {[%emt 0:04:39]} 24. c5 {[%emt 0:05:06]} Bf8 {[%emt 0:02:03]} 25. Rh1 {[%emt 0:09:56]} Bxc5 {[%emt 0:02:30]} 26. Bg4 {[%emt 0:03:18]} Rxd1 {[%emt 0:12:15]} 27. Rxd1 {[%emt 0:00:10]} Bxe3 {[%emt 0:01:09]} 28. Bxe6 {[%emt 0:00:08]} Bd4 {[%emt 0:00:30]} 29. Bc4 {[%emt 0:01:11]} Kg7 {[%emt 0:02:36]} 30. Rh1 {[%emt 0:01:07]} Rd8 {[%emt 0:01:22]} 31. Qe2 {[%emt 0:01:32]} b5 {[%emt 0:00:39]} 32. Bd3 {[%emt 0:01:52]} Bxb2 {[%emt 0:01:14]} 33. f4 {[%emt 0:00:14]} Qf6 {[%emt 0:01:08]} 34. f5 {[%emt 0:00:42]} Bc3 {[%emt 0:01:41]} 35. Rf1 {[%emt 0:01:31]} Qg5 {[%emt 0:00:36]} 36. fxg6 {[%emt 0:00:50]} Qxg6 {[%emt 0:00:52]} 37. Rf5 {[%emt 0:00:32]} f6 {[%emt 0:00:28]} 38. Qe3 {[%emt 0:01:58]} Bd4 {[%emt 0:00:22]} 39. Qc1 {[%emt 0:00:01]} Bf2 {[%emt 0:01:06]} 40. Rf3 {[%emt 0:00:02]} Rxd3 {[%emt 0:30:35]} 41. Rxd3 {[%emt 0:30:22]} Qxe4+ {[%emt 0:00:11]} 42. Rf3 {[%emt 0:00:57]} Bd4 {[%emt 0:00:00]} 43. Qf1 {[%emt 0:00:00]} f5 {[%emt 0:00:00]} 44. Kh2 {[%emt 0:00:00]} Kg6 {[%emt 0:00:00]} 45. g4 {[%emt 0:00:00]} f4 {[%emt 0:00:00]} 46. Qh3 {[%emt 0:00:00]} Qc2+ {[%emt 0:00:00]} 47. Kh1 {[%emt 0:00:00]} Kg7 {[%emt 0:00:00]} 48. g5 {[%emt 0:00:00]} Qh7 {[%emt 0:00:00]} 49. Kg2 {[%emt 0:00:00]} Qxh3+ {[%emt 0:00:00]} 50. Rxh3 {[%emt 0:00:00]} c5 {[%emt 0:00:00]} 51. Rh6 {[%emt 0:00:44]} e4 {[%emt 0:00:00]} 52. Re6 {[%emt 0:01:01]} f3+ {[%emt 0:00:00]} 53. Kg3 {[%emt 0:01:36]} f2 {[%emt 0:00:00]} 54. Kg2 {[%emt 0:00:03]} e3 {[%emt 0:00:00]} 55. Kf1 {[%emt 0:00:05]} c4 {[%emt 0:00:00]} 56. Re4 {[%emt 0:02:10]} Bb2 {[%emt 0:00:00]} 57. Rxe3 {[%emt 0:00:07]} b4 {[%emt 0:00:00]} 58. Re7+ {[%emt 0:00:40]} Kg6 {[%emt 0:00:00]} 59. Kxf2 {[%emt 0:02:03]} a4 {[%emt 0:00:00]} 60. Rc7 {[%emt 0:01:15]} c3 {[%emt 0:02:45]} 61. Ke2 {[%emt 0:00:47]} a3 {[%emt 0:07:10]} 62. Kd3 {[%emt 0:00:18]} b3 {[%emt 0:00:14]} 63. axb3 {[%emt 0:00:05]} a2 {[%emt 0:00:03]} 64. Ra7 {[%emt 0:00:07]} a1=Q {[%emt 0:00:26]} 65. Rxa1 {[%emt 0:00:06]} Bxa1 {[%emt 0:00:03]} 66. b4 {[%emt 0:00:05]} Kxg5 {[%emt 0:00:46]} 67. b5 {[%emt 0:00:06]} 1/2-1/2